Workbook

Sheet Bröllopsbudget
B2: LISHA + DANIEL GIFTA SIG
B5: KATEGORI | C5: BERÄKNAD KOSTNAD | D5: FAKTISK KOSTNAD | E5: AVVIKELSE | F5: BUDGET % | J5: Osorterad | K5: Beräknade kostnader | L5: Verkliga kostnader | M5: Uppskattad kostnad – rankvärde | N5: Rangordna | O5: Nr | P5: Sorterad
B6: =P6 -> Mottagning | C6: =VLOOKUP(TBL_Sammanfattning[[#This Row],[KATEGORI]],TBL_Rankningsdata,2,FALSE) -> 14,500 kr | D6: =IF(VLOOKUP(TBL_Sammanfattning[[#This Row],[KATEGORI]],TBL_Rankningsdata,3,FALSE)=0,"",VLOOKUP(TBL_Sammanfattning[[#This Row],[KATEGORI]],TBL_Rankningsdata,3,FALSE)) -> 12,800 kr | E6: =IF(OR(TBL_Sammanfattning[[#This Row],[BERÄKNAD KOSTNAD]]="",TBL_Sammanfattning[[#This Row],[FAKTISK KOSTNAD]]=""),"",TBL_Sammanfattning[[#This Row],[BERÄKNAD KOSTNAD]]-TBL_Sammanfattning[[#This Row],[FAKTISK KOSTNAD]]) -> 1,700 kr | F6: =TBL_Sammanfattning[[#This Row],[BERÄKNAD KOSTNAD]]/SUM(TBL_Sammanfattning[BERÄKNAD KOSTNAD]) -> 48.7% | J6: Mottagning | K6: =TBL_Mottagning[[#Totals],[UPPSKATTADE]] -> 14500 | L6: =TBL_Mottagning[[#Totals],[FAKTISKA]] -> 12800 | M6: =K6-O6/100 -> 14499.99 | N6: =_xlfn.RANK.AVG(M6,$M$6:$M$15) -> 1 | O6: 1 | P6: =INDEX(TBL_Rankningsdata,MATCH(O6,$N$6:$N$15,0),1) -> Mottagning
B7: =P7 -> Klädsel | C7: =VLOOKUP(TBL_Sammanfattning[[#This Row],[KATEGORI]],TBL_Rankningsdata,2,FALSE) -> 4,000 kr | D7: =IF(VLOOKUP(TBL_Sammanfattning[[#This Row],[KATEGORI]],TBL_Rankningsdata,3,FALSE)=0,"",VLOOKUP(TBL_Sammanfattning[[#This Row],[KATEGORI]],TBL_Rankningsdata,3,FALSE)) -> 2,900 kr | E7: =IF(OR(TBL_Sammanfattning[[#This Row],[BERÄKNAD KOSTNAD]]="",TBL_Sammanfattning[[#This Row],[FAKTISK KOSTNAD]]=""),"",TBL_Sammanfattning[[#This Row],[BERÄKNAD KOSTNAD]]-TBL_Sammanfattning[[#This Row],[FAKTISK KOSTNAD]]) -> 1,100 kr | F7: =TBL_Sammanfattning[[#This Row],[BERÄKNAD KOSTNAD]]/SUM(TBL_Sammanfattning[BERÄKNAD KOSTNAD]) -> 13.4% | J7: Klädsel | K7: =TBL_Kläder[[#Totals],[UPPSKATTADE]] -> 4000 | L7: =TBL_Kläder[[#Totals],[FAKTISKA]] -> 2900 | M7: =K7-O7/100 -> 3999.98 | N7: 2 | O7: 2 | P7: Klädsel
B8: Blommor och utsmyckningar | C8: =VLOOKUP(TBL_Sammanfattning[[#This Row],[KATEGORI]],TBL_Rankningsdata,2,FALSE) -> 3,000 kr | D8: =IF(VLOOKUP(TBL_Sammanfattning[[#This Row],[KATEGORI]],TBL_Rankningsdata,3,FALSE)=0,"",VLOOKUP(TBL_Sammanfattning[[#This Row],[KATEGORI]],TBL_Rankningsdata,3,FALSE)) ->  | E8: =IF(OR(TBL_Sammanfattning[[#This Row],[BERÄKNAD KOSTNAD]]="",TBL_Sammanfattning[[#This Row],[FAKTISK KOSTNAD]]=""),"",TBL_Sammanfattning[[#This Row],[BERÄKNAD KOSTNAD]]-TBL_Sammanfattning[[#This Row],[FAKTISK KOSTNAD]]) ->  | F8: =TBL_Sammanfattning[[#This Row],[BERÄKNAD KOSTNAD]]/SUM(TBL_Sammanfattning[BERÄKNAD KOSTNAD]) -> 10.1% | J8: Blommor och utsmyckningar | K8: =TBL_BlommorOchDekorationer[[#Totals],[UPPSKATTADE]] -> 3000 | L8: =TBL_BlommorOchDekorationer[[#Totals],[FAKTISKA]] -> 0 | M8: 2999.97 | N8: 3 | O8: 3 | P8: Blommor och utsmyckningar
B9: Foton och video | C9: =VLOOKUP(TBL_Sammanfattning[[#This Row],[KATEGORI]],TBL_Rankningsdata,2,FALSE) -> 2,500 kr | D9: =IF(VLOOKUP(TBL_Sammanfattning[[#This Row],[KATEGORI]],TBL_Rankningsdata,3,FALSE)=0,"",VLOOKUP(TBL_Sammanfattning[[#This Row],[KATEGORI]],TBL_Rankningsdata,3,FALSE)) ->  | E9: =IF(OR(TBL_Sammanfattning[[#This Row],[BERÄKNAD KOSTNAD]]="",TBL_Sammanfattning[[#This Row],[FAKTISK KOSTNAD]]=""),"",TBL_Sammanfattning[[#This Row],[BERÄKNAD KOSTNAD]]-TBL_Sammanfattning[[#This Row],[FAKTISK KOSTNAD]]) ->  | F9: =TBL_Sammanfattning[[#This Row],[BERÄKNAD KOSTNAD]]/SUM(TBL_Sammanfattning[BERÄKNAD KOSTNAD]) -> 8.4% | J9: Musik | K9: =TBL_Musik[[#Totals],[UPPSKATTADE]] -> 1800 | L9: =TBL_Musik[[#Totals],[FAKTISKA]] -> 0 | M9: 1799.96 | N9: 5 | O9: 4 | P9: Foton och video
B10: Musik | C10: =VLOOKUP(TBL_Sammanfattning[[#This Row],[KATEGORI]],TBL_Rankningsdata,2,FALSE) -> 1,800 kr | D10: =IF(VLOOKUP(TBL_Sammanfattning[[#This Row],[KATEGORI]],TBL_Rankningsdata,3,FALSE)=0,"",VLOOKUP(TBL_Sammanfattning[[#This Row],[KATEGORI]],TBL_Rankningsdata,3,FALSE)) ->  | E10: =IF(OR(TBL_Sammanfattning[[#This Row],[BERÄKNAD KOSTNAD]]="",TBL_Sammanfattning[[#This Row],[FAKTISK KOSTNAD]]=""),"",TBL_Sammanfattning[[#This Row],[BERÄKNAD KOSTNAD]]-TBL_Sammanfattning[[#This Row],[FAKTISK KOSTNAD]]) ->  | F10: =TBL_Sammanfattning[[#This Row],[BERÄKNAD KOSTNAD]]/SUM(TBL_Sammanfattning[BERÄKNAD KOSTNAD]) -> 6.1% | J10: Foton och video | K10: =TBL_FotoOchVideo[[#Totals],[UPPSKATTADE]] -> 2500 | L10: =TBL_FotoOchVideo[[#Totals],[FAKTISKA]] -> 0 | M10: 2499.95 | N10: 4 | O10: 5 | P10: Musik
B11: Tjänster och gåvor | C11: =VLOOKUP(TBL_Sammanfattning[[#This Row],[KATEGORI]],TBL_Rankningsdata,2,FALSE) -> 1,100 kr | D11: =IF(VLOOKUP(TBL_Sammanfattning[[#This Row],[KATEGORI]],TBL_Rankningsdata,3,FALSE)=0,"",VLOOKUP(TBL_Sammanfattning[[#This Row],[KATEGORI]],TBL_Rankningsdata,3,FALSE)) ->  | E11: =IF(OR(TBL_Sammanfattning[[#This Row],[BERÄKNAD KOSTNAD]]="",TBL_Sammanfattning[[#This Row],[FAKTISK KOSTNAD]]=""),"",TBL_Sammanfattning[[#This Row],[BERÄKNAD KOSTNAD]]-TBL_Sammanfattning[[#This Row],[FAKTISK KOSTNAD]]) ->  | F11: =TBL_Sammanfattning[[#This Row],[BERÄKNAD KOSTNAD]]/SUM(TBL_Sammanfattning[BERÄKNAD KOSTNAD]) -> 3.7% | J11: Tjänster och gåvor | K11: =TBL_PresenterOchGåvor[[#Totals],[UPPSKATTADE]] -> 1100 | L11: =TBL_PresenterOchGåvor[[#Totals],[FAKTISKA]] -> 0 | M11: 1099.94 | N11: 6 | O11: 6 | P11: Tjänster och gåvor
B12: =P12 -> Vigselringar | C12: =VLOOKUP(TBL_Sammanfattning[[#This Row],[KATEGORI]],TBL_Rankningsdata,2,FALSE) -> 1,100 kr | D12: =IF(VLOOKUP(TBL_Sammanfattning[[#This Row],[KATEGORI]],TBL_Rankningsdata,3,FALSE)=0,"",VLOOKUP(TBL_Sammanfattning[[#This Row],[KATEGORI]],TBL_Rankningsdata,3,FALSE)) ->  | E12: =IF(OR(TBL_Sammanfattning[[#This Row],[BERÄKNAD KOSTNAD]]="",TBL_Sammanfattning[[#This Row],[FAKTISK KOSTNAD]]=""),"",TBL_Sammanfattning[[#This Row],[BERÄKNAD KOSTNAD]]-TBL_Sammanfattning[[#This Row],[FAKTISK KOSTNAD]]) ->  | F12: =TBL_Sammanfattning[[#This Row],[BERÄKNAD KOSTNAD]]/SUM(TBL_Sammanfattning[BERÄKNAD KOSTNAD]) -> 3.7% | J12: Ceremoni | K12: =TBL_Ceremoni[[#Totals],[UPPSKATTADE]] -> 800 | L12: =TBL_Ceremoni[[#Totals],[FAKTISKA]] -> 0 | M12: 799.93 | N12: 8 | O12: 7 | P12: Vigselringar
B13: Ceremoni | C13: =VLOOKUP(TBL_Sammanfattning[[#This Row],[KATEGORI]],TBL_Rankningsdata,2,FALSE) -> 800 kr | D13: =IF(VLOOKUP(TBL_Sammanfattning[[#This Row],[KATEGORI]],TBL_Rankningsdata,3,FALSE)=0,"",VLOOKUP(TBL_Sammanfattning[[#This Row],[KATEGORI]],TBL_Rankningsdata,3,FALSE)) ->  | E13: =IF(OR(TBL_Sammanfattning[[#This Row],[BERÄKNAD KOSTNAD]]="",TBL_Sammanfattning[[#This Row],[FAKTISK KOSTNAD]]=""),"",TBL_Sammanfattning[[#This Row],[BERÄKNAD KOSTNAD]]-TBL_Sammanfattning[[#This Row],[FAKTISK KOSTNAD]]) ->  | F13: =TBL_Sammanfattning[[#This Row],[BERÄKNAD KOSTNAD]]/SUM(TBL_Sammanfattning[BERÄKNAD KOSTNAD]) -> 2.7% | J13: Brevpapper | K13: =TBL_Pappersvaror[[#Totals],[UPPSKATTADE]] -> 500 | L13: =TBL_Pappersvaror[[#Totals],[FAKTISKA]] -> 0 | M13: 499.92 | N13: 9 | O13: 8 | P13: Ceremoni
B14: Brevpapper | C14: =VLOOKUP(TBL_Sammanfattning[[#This Row],[KATEGORI]],TBL_Rankningsdata,2,FALSE) -> 500 kr | D14: =IF(VLOOKUP(TBL_Sammanfattning[[#This Row],[KATEGORI]],TBL_Rankningsdata,3,FALSE)=0,"",VLOOKUP(TBL_Sammanfattning[[#This Row],[KATEGORI]],TBL_Rankningsdata,3,FALSE)) ->  | E14: =IF(OR(TBL_Sammanfattning[[#This Row],[BERÄKNAD KOSTNAD]]="",TBL_Sammanfattning[[#This Row],[FAKTISK KOSTNAD]]=""),"",TBL_Sammanfattning[[#This Row],[BERÄKNAD KOSTNAD]]-TBL_Sammanfattning[[#This Row],[FAKTISK KOSTNAD]]) ->  | F14: =TBL_Sammanfattning[[#This Row],[BERÄKNAD KOSTNAD]]/SUM(TBL_Sammanfattning[BERÄKNAD KOSTNAD]) -> 1.7% | J14: Vigselringar | K14: =TBL_Bröllopsringar[[#Totals],[UPPSKATTADE]] -> 1100 | L14: =TBL_Bröllopsringar[[#Totals],[FAKTISKA]] -> 0 | M14: 1099.91 | N14: 7 | O14: 9 | P14: Brevpapper
B15: Transport | C15: =VLOOKUP(TBL_Sammanfattning[[#This Row],[KATEGORI]],TBL_Rankningsdata,2,FALSE) -> 450 kr | D15: =IF(VLOOKUP(TBL_Sammanfattning[[#This Row],[KATEGORI]],TBL_Rankningsdata,3,FALSE)=0,"",VLOOKUP(TBL_Sammanfattning[[#This Row],[KATEGORI]],TBL_Rankningsdata,3,FALSE)) ->  | E15: =IF(OR(TBL_Sammanfattning[[#This Row],[BERÄKNAD KOSTNAD]]="",TBL_Sammanfattning[[#This Row],[FAKTISK KOSTNAD]]=""),"",TBL_Sammanfattning[[#This Row],[BERÄKNAD KOSTNAD]]-TBL_Sammanfattning[[#This Row],[FAKTISK KOSTNAD]]) ->  | F15: =TBL_Sammanfattning[[#This Row],[BERÄKNAD KOSTNAD]]/SUM(TBL_Sammanfattning[BERÄKNAD KOSTNAD]) -> 1.5% | J15: Transport | K15: =TBL_Transport[[#Totals],[UPPSKATTADE]] -> 450 | L15: =TBL_Transport[[#Totals],[FAKTISKT]] -> 0 | M15: 449.9 | N15: 10 | O15: 10 | P15: Transport
B16: Summa | C16: =SUBTOTAL(109,TBL_Sammanfattning[BERÄKNAD KOSTNAD]) -> 29,750 kr | D16: =SUBTOTAL(109,TBL_Sammanfattning[FAKTISK KOSTNAD]) -> 15,700 kr | E16: =TBL_Sammanfattning[[#Totals],[BERÄKNAD KOSTNAD]]-TBL_Sammanfattning[[#Totals],[FAKTISK KOSTNAD]] -> 14,050 kr | F16: =SUBTOTAL(109,TBL_Sammanfattning[BUDGET %]) -> 100%

Sheet Budgetinformation
B2: BUDGETINFORMATION
B4: MOTTAGNING | C4: UPPSKATTADE | D4: FAKTISKA | E4: AVVIKELSE
B5: Lokaler och hyror | C5: 8,000.00 kr | D5: 7,800.00 kr | E5: =IF(OR(TBL_Mottagning[[#This Row],[UPPSKATTADE]]="",TBL_Mottagning[[#This Row],[FAKTISKA]]=""),"",TBL_Mottagning[[#This Row],[UPPSKATTADE]]-TBL_Mottagning[[#This Row],[FAKTISKA]]) -> 200.00 kr
B6: Livsmedel och tjänster | C6: 4,000.00 kr | D6: 4,200.00 kr | E6: =IF(OR(TBL_Mottagning[[#This Row],[UPPSKATTADE]]="",TBL_Mottagning[[#This Row],[FAKTISKA]]=""),"",TBL_Mottagning[[#This Row],[UPPSKATTADE]]-TBL_Mottagning[[#This Row],[FAKTISKA]]) -> -200.00 kr
B7: Drycker | C7: 1,000.00 kr | D7: 800.00 kr | E7: =IF(OR(TBL_Mottagning[[#This Row],[UPPSKATTADE]]="",TBL_Mottagning[[#This Row],[FAKTISKA]]=""),"",TBL_Mottagning[[#This Row],[UPPSKATTADE]]-TBL_Mottagning[[#This Row],[FAKTISKA]]) -> 200.00 kr
B8: Tårta | C8: 1,000.00 kr | E8: =IF(OR(TBL_Mottagning[[#This Row],[UPPSKATTADE]]="",TBL_Mottagning[[#This Row],[FAKTISKA]]=""),"",TBL_Mottagning[[#This Row],[UPPSKATTADE]]-TBL_Mottagning[[#This Row],[FAKTISKA]]) -> 
B9: Diverse utgifter | C9: 500.00 kr | E9: =IF(OR(TBL_Mottagning[[#This Row],[UPPSKATTADE]]="",TBL_Mottagning[[#This Row],[FAKTISKA]]=""),"",TBL_Mottagning[[#This Row],[UPPSKATTADE]]-TBL_Mottagning[[#This Row],[FAKTISKA]]) -> 
B10: SUMMA MOTTAGNING | C10: =SUBTOTAL(109,TBL_Mottagning[UPPSKATTADE]) -> 14,500.00 kr | D10: =SUBTOTAL(109,TBL_Mottagning[FAKTISKA]) -> 12,800.00 kr | E10: =TBL_Mottagning[[#Totals],[UPPSKATTADE]]-TBL_Mottagning[[#Totals],[FAKTISKA]] -> 1,700.00 kr
B13: KLÄDER | C13: UPPSKATTADE | D13: FAKTISKA | E13: AVVIKELSE
B14: Frack, smoking och/eller klänningar | C14: 3,000.00 kr | D14: 2,900.00 kr | E14: =IF(OR(TBL_Kläder[[#This Row],[UPPSKATTADE]]="",TBL_Kläder[[#This Row],[FAKTISKA]]=""),"",TBL_Kläder[[#This Row],[UPPSKATTADE]]-TBL_Kläder[[#This Row],[FAKTISKA]]) -> 100.00 kr
B15: Ändringar | C15: 100.00 kr | E15: =IF(OR(TBL_Kläder[[#This Row],[UPPSKATTADE]]="",TBL_Kläder[[#This Row],[FAKTISKA]]=""),"",TBL_Kläder[[#This Row],[UPPSKATTADE]]-TBL_Kläder[[#This Row],[FAKTISKA]]) -> 
B16: Krona och slöja | C16: 200.00 kr | E16: =IF(OR(TBL_Kläder[[#This Row],[UPPSKATTADE]]="",TBL_Kläder[[#This Row],[FAKTISKA]]=""),"",TBL_Kläder[[#This Row],[UPPSKATTADE]]-TBL_Kläder[[#This Row],[FAKTISKA]]) -> 
B17: Accessoarer | C17: 100.00 kr | E17: =IF(OR(TBL_Kläder[[#This Row],[UPPSKATTADE]]="",TBL_Kläder[[#This Row],[FAKTISKA]]=""),"",TBL_Kläder[[#This Row],[UPPSKATTADE]]-TBL_Kläder[[#This Row],[FAKTISKA]]) -> 
B18: Hår och makeup | C18: 500.00 kr | E18: =IF(OR(TBL_Kläder[[#This Row],[UPPSKATTADE]]="",TBL_Kläder[[#This Row],[FAKTISKA]]=""),"",TBL_Kläder[[#This Row],[UPPSKATTADE]]-TBL_Kläder[[#This Row],[FAKTISKA]]) -> 
B19: Diverse utgifter | C19: 100.00 kr | E19: =IF(OR(TBL_Kläder[[#This Row],[UPPSKATTADE]]="",TBL_Kläder[[#This Row],[FAKTISKA]]=""),"",TBL_Kläder[[#This Row],[UPPSKATTADE]]-TBL_Kläder[[#This Row],[FAKTISKA]]) -> 
B20: SUMMA KLÄDSEL | C20: =SUBTOTAL(109,TBL_Kläder[UPPSKATTADE]) -> 4,000.00 kr | D20: =SUBTOTAL(109,TBL_Kläder[FAKTISKA]) -> 2,900.00 kr | E20: =TBL_Kläder[[#Totals],[UPPSKATTADE]]-TBL_Kläder[[#Totals],[FAKTISKA]] -> 1,100.00 kr
B23: BLOMMOR OCH DEKORATIONER | C23: UPPSKATTADE | D23: FAKTISKA | E23: AVVIKELSE
B24: Blomsterarrangemang för ceremoni | C24: 1,000.00 kr | E24: =IF(OR(TBL_BlommorOchDekorationer[[#This Row],[UPPSKATTADE]]="",TBL_BlommorOchDekorationer[[#This Row],[FAKTISKA]]=""),"",TBL_BlommorOchDekorationer[[#This Row],[UPPSKATTADE]]-TBL_BlommorOchDekorationer[[#This Row],[FAKTISKA]]) -> 
B25: Tärnornas buketter och/eller korgar | C25: 500.00 kr | E25: =IF(OR(TBL_BlommorOchDekorationer[[#This Row],[UPPSKATTADE]]="",TBL_BlommorOchDekorationer[[#This Row],[FAKTISKA]]=""),"",TBL_BlommorOchDekorationer[[#This Row],[UPPSKATTADE]]-TBL_BlommorOchDekorationer[[#This Row],[FAKTISKA]]) -> 
B26: Ringkudde | C26: 100.00 kr | E26: =IF(OR(TBL_BlommorOchDekorationer[[#This Row],[UPPSKATTADE]]="",TBL_BlommorOchDekorationer[[#This Row],[FAKTISKA]]=""),"",TBL_BlommorOchDekorationer[[#This Row],[UPPSKATTADE]]-TBL_BlommorOchDekorationer[[#This Row],[FAKTISKA]]) -> 
B27: Buketter | C27: 500.00 kr | E27: =IF(OR(TBL_BlommorOchDekorationer[[#This Row],[UPPSKATTADE]]="",TBL_BlommorOchDekorationer[[#This Row],[FAKTISKA]]=""),"",TBL_BlommorOchDekorationer[[#This Row],[UPPSKATTADE]]-TBL_BlommorOchDekorationer[[#This Row],[FAKTISKA]]) -> 
B28: Knapphålsblommor | C28: 100.00 kr | E28: =IF(OR(TBL_BlommorOchDekorationer[[#This Row],[UPPSKATTADE]]="",TBL_BlommorOchDekorationer[[#This Row],[FAKTISKA]]=""),"",TBL_BlommorOchDekorationer[[#This Row],[UPPSKATTADE]]-TBL_BlommorOchDekorationer[[#This Row],[FAKTISKA]]) -> 
B29: Bröstbuketter | C29: 200.00 kr | E29: =IF(OR(TBL_BlommorOchDekorationer[[#This Row],[UPPSKATTADE]]="",TBL_BlommorOchDekorationer[[#This Row],[FAKTISKA]]=""),"",TBL_BlommorOchDekorationer[[#This Row],[UPPSKATTADE]]-TBL_BlommorOchDekorationer[[#This Row],[FAKTISKA]]) -> 
B30: Dekorationer för mottagning | C30: 300.00 kr | E30: =IF(OR(TBL_BlommorOchDekorationer[[#This Row],[UPPSKATTADE]]="",TBL_BlommorOchDekorationer[[#This Row],[FAKTISKA]]=""),"",TBL_BlommorOchDekorationer[[#This Row],[UPPSKATTADE]]-TBL_BlommorOchDekorationer[[#This Row],[FAKTISKA]]) -> 
B31: Belysning | C31: 200.00 kr | E31: =IF(OR(TBL_BlommorOchDekorationer[[#This Row],[UPPSKATTADE]]="",TBL_BlommorOchDekorationer[[#This Row],[FAKTISKA]]=""),"",TBL_BlommorOchDekorationer[[#This Row],[UPPSKATTADE]]-TBL_BlommorOchDekorationer[[#This Row],[FAKTISKA]]) -> 
B32: Diverse utgifter | C32: 100.00 kr | E32: =IF(OR(TBL_BlommorOchDekorationer[[#This Row],[UPPSKATTADE]]="",TBL_BlommorOchDekorationer[[#This Row],[FAKTISKA]]=""),"",TBL_BlommorOchDekorationer[[#This Row],[UPPSKATTADE]]-TBL_BlommorOchDekorationer[[#This Row],[FAKTISKA]]) -> 
B33: SUMMA BLOMMOR OCH DEKORATIONER | C33: =SUBTOTAL(109,TBL_BlommorOchDekorationer[UPPSKATTADE]) -> 3,000.00 kr | D33: =SUBTOTAL(109,TBL_BlommorOchDekorationer[FAKTISKA]) -> 0.00 kr | E33: =TBL_BlommorOchDekorationer[[#Totals],[UPPSKATTADE]]-TBL_BlommorOchDekorationer[[#Totals],[FAKTISKA]] -> 3,000.00 kr
B36: MUSIK | C36: UPPSKATTADE | D36: FAKTISKA | E36: AVVIKELSE
B37: Musiker för ceremoni | C37: 700.00 kr | E37: =IF(OR(TBL_Musik[[#This Row],[UPPSKATTADE]]="",TBL_Musik[[#This Row],[FAKTISKA]]=""),"",TBL_Musik[[#This Row],[UPPSKATTADE]]-TBL_Musik[[#This Row],[FAKTISKA]]) -> 
B38: Musiker för mottagning | C38: 300.00 kr | E38: =IF(OR(TBL_Musik[[#This Row],[UPPSKATTADE]]="",TBL_Musik[[#This Row],[FAKTISKA]]=""),"",TBL_Musik[[#This Row],[UPPSKATTADE]]-TBL_Musik[[#This Row],[FAKTISKA]]) -> 
B39: Mottagningsband, DJ eller underhållning | C39: 200.00 kr | E39: =IF(OR(TBL_Musik[[#This Row],[UPPSKATTADE]]="",TBL_Musik[[#This Row],[FAKTISKA]]=""),"",TBL_Musik[[#This Row],[UPPSKATTADE]]-TBL_Musik[[#This Row],[FAKTISKA]]) -> 
B40: Ljudsystem eller hyra av dansgolv | C40: 400.00 kr | E40: =IF(OR(TBL_Musik[[#This Row],[UPPSKATTADE]]="",TBL_Musik[[#This Row],[FAKTISKA]]=""),"",TBL_Musik[[#This Row],[UPPSKATTADE]]-TBL_Musik[[#This Row],[FAKTISKA]]) -> 
B41: Diverse utgifter | C41: 200.00 kr | E41: =IF(OR(TBL_Musik[[#This Row],[UPPSKATTADE]]="",TBL_Musik[[#This Row],[FAKTISKA]]=""),"",TBL_Musik[[#This Row],[UPPSKATTADE]]-TBL_Musik[[#This Row],[FAKTISKA]]) -> 
B42: SUMMA MUSIK | C42: =SUBTOTAL(109,TBL_Musik[UPPSKATTADE]) -> 1,800.00 kr | D42: =SUBTOTAL(109,TBL_Musik[FAKTISKA]) -> 0.00 kr | E42: =TBL_Musik[[#Totals],[UPPSKATTADE]]-TBL_Musik[[#Totals],[FAKTISKA]] -> 1,800.00 kr
B45: FOTO OCH VIDEO | C45: UPPSKATTADE | D45: FAKTISKA | E45: AVVIKELSE
B46: Fotografering | C46: 1,000.00 kr | E46: =IF(OR(TBL_FotoOchVideo[[#This Row],[UPPSKATTADE]]="",TBL_FotoOchVideo[[#This Row],[FAKTISKA]]=""),"",TBL_FotoOchVideo[[#This Row],[UPPSKATTADE]]-TBL_FotoOchVideo[[#This Row],[FAKTISKA]]) -> 
B47: Videofilmning | C47: 800.00 kr | E47: =IF(OR(TBL_FotoOchVideo[[#This Row],[UPPSKATTADE]]="",TBL_FotoOchVideo[[#This Row],[FAKTISKA]]=""),"",TBL_FotoOchVideo[[#This Row],[UPPSKATTADE]]-TBL_FotoOchVideo[[#This Row],[FAKTISKA]]) -> 
B48: Ytterligare utskrifter och album | C48: 500.00 kr | E48: =IF(OR(TBL_FotoOchVideo[[#This Row],[UPPSKATTADE]]="",TBL_FotoOchVideo[[#This Row],[FAKTISKA]]=""),"",TBL_FotoOchVideo[[#This Row],[UPPSKATTADE]]-TBL_FotoOchVideo[[#This Row],[FAKTISKA]]) -> 
B49: Diverse utgifter | C49: 200.00 kr | E49: =IF(OR(TBL_FotoOchVideo[[#This Row],[UPPSKATTADE]]="",TBL_FotoOchVideo[[#This Row],[FAKTISKA]]=""),"",TBL_FotoOchVideo[[#This Row],[UPPSKATTADE]]-TBL_FotoOchVideo[[#This Row],[FAKTISKA]]) -> 
B50: SUMMA FOTOGRAFERING OCH VIDEO | C50: =SUBTOTAL(109,TBL_FotoOchVideo[UPPSKATTADE]) -> 2,500.00 kr | D50: =SUBTOTAL(109,TBL_FotoOchVideo[FAKTISKA]) -> 0.00 kr | E50: =TBL_FotoOchVideo[[#Totals],[UPPSKATTADE]]-TBL_FotoOchVideo[[#Totals],[FAKTISKA]] -> 2,500.00 kr
B53: PRESENTER OCH GÅVOR | C53: UPPSKATTADE | D53: FAKTISKA | E53: AVVIKELSE
B54: Välkomstgåvor | C54: 700.00 kr | E54: =IF(OR(TBL_PresenterOchGåvor[[#This Row],[UPPSKATTADE]]="",TBL_PresenterOchGåvor[[#This Row],[FAKTISKA]]=""),"",TBL_PresenterOchGåvor[[#This Row],[UPPSKATTADE]]-TBL_PresenterOchGåvor[[#This Row],[FAKTISKA]]) -> 
B55: Partypresenter | C55: 200.00 kr | E55: =IF(OR(TBL_PresenterOchGåvor[[#This Row],[UPPSKATTADE]]="",TBL_PresenterOchGåvor[[#This Row],[FAKTISKA]]=""),"",TBL_PresenterOchGåvor[[#This Row],[UPPSKATTADE]]-TBL_PresenterOchGåvor[[#This Row],[FAKTISKA]]) -> 
B56: Diverse utgifter | C56: 200.00 kr | E56: =IF(OR(TBL_PresenterOchGåvor[[#This Row],[UPPSKATTADE]]="",TBL_PresenterOchGåvor[[#This Row],[FAKTISKA]]=""),"",TBL_PresenterOchGåvor[[#This Row],[UPPSKATTADE]]-TBL_PresenterOchGåvor[[#This Row],[FAKTISKA]]) -> 
B57: SUMMA TJÄNSTER OCH GÅVOR | C57: =SUBTOTAL(109,TBL_PresenterOchGåvor[UPPSKATTADE]) -> 1,100.00 kr | D57: =SUBTOTAL(109,TBL_PresenterOchGåvor[FAKTISKA]) -> 0.00 kr | E57: =TBL_PresenterOchGåvor[[#Totals],[UPPSKATTADE]]-TBL_PresenterOchGåvor[[#Totals],[FAKTISKA]] -> 1,100.00 kr
B60: CEREMONI | C60: UPPSKATTADE | D60: FAKTISKA | E60: AVVIKELSE
B61: Lokalkostnad | C61: 500.00 kr | E61: =IF(OR(TBL_Ceremoni[[#This Row],[UPPSKATTADE]]="",TBL_Ceremoni[[#This Row],[FAKTISKA]]=""),"",TBL_Ceremoni[[#This Row],[UPPSKATTADE]]-TBL_Ceremoni[[#This Row],[FAKTISKA]]) -> 
B62: Betalning eller donation till officiant eller kyrka | C62: 200.00 kr | E62: =IF(OR(TBL_Ceremoni[[#This Row],[UPPSKATTADE]]="",TBL_Ceremoni[[#This Row],[FAKTISKA]]=""),"",TBL_Ceremoni[[#This Row],[UPPSKATTADE]]-TBL_Ceremoni[[#This Row],[FAKTISKA]]) -> 
B63: Diverse utgifter | C63: 100.00 kr | E63: =IF(OR(TBL_Ceremoni[[#This Row],[UPPSKATTADE]]="",TBL_Ceremoni[[#This Row],[FAKTISKA]]=""),"",TBL_Ceremoni[[#This Row],[UPPSKATTADE]]-TBL_Ceremoni[[#This Row],[FAKTISKA]]) -> 
B64: SUMMA CERMONI | C64: =SUBTOTAL(109,TBL_Ceremoni[UPPSKATTADE]) -> 800.00 kr | D64: =SUBTOTAL(109,TBL_Ceremoni[FAKTISKA]) -> 0.00 kr | E64: =TBL_Ceremoni[[#Totals],[UPPSKATTADE]]-TBL_Ceremoni[[#Totals],[FAKTISKA]] -> 800.00 kr
B67: PAPPERSVAROR | C67: UPPSKATTADE | D67: FAKTISKA | E67: AVVIKELSE
B68: Inbjudningskort | C68: 50.00 kr | E68: =IF(OR(TBL_Pappersvaror[[#This Row],[UPPSKATTADE]]="",TBL_Pappersvaror[[#This Row],[FAKTISKA]]=""),"",TBL_Pappersvaror[[#This Row],[UPPSKATTADE]]-TBL_Pappersvaror[[#This Row],[FAKTISKA]]) -> 
B69: Inbjudningar och RSVP | C69: 100.00 kr | E69: =IF(OR(TBL_Pappersvaror[[#This Row],[UPPSKATTADE]]="",TBL_Pappersvaror[[#This Row],[FAKTISKA]]=""),"",TBL_Pappersvaror[[#This Row],[UPPSKATTADE]]-TBL_Pappersvaror[[#This Row],[FAKTISKA]]) -> 
B70: Program | C70: 50.00 kr | E70: =IF(OR(TBL_Pappersvaror[[#This Row],[UPPSKATTADE]]="",TBL_Pappersvaror[[#This Row],[FAKTISKA]]=""),"",TBL_Pappersvaror[[#This Row],[UPPSKATTADE]]-TBL_Pappersvaror[[#This Row],[FAKTISKA]]) -> 
B71: Platskort | C71: 50.00 kr | E71: =IF(OR(TBL_Pappersvaror[[#This Row],[UPPSKATTADE]]="",TBL_Pappersvaror[[#This Row],[FAKTISKA]]=""),"",TBL_Pappersvaror[[#This Row],[UPPSKATTADE]]-TBL_Pappersvaror[[#This Row],[FAKTISKA]]) -> 
B72: Menykort | C72: 50.00 kr | E72: =IF(OR(TBL_Pappersvaror[[#This Row],[UPPSKATTADE]]="",TBL_Pappersvaror[[#This Row],[FAKTISKA]]=""),"",TBL_Pappersvaror[[#This Row],[UPPSKATTADE]]-TBL_Pappersvaror[[#This Row],[FAKTISKA]]) -> 
B73: Tackkort | C73: 50.00 kr | E73: =IF(OR(TBL_Pappersvaror[[#This Row],[UPPSKATTADE]]="",TBL_Pappersvaror[[#This Row],[FAKTISKA]]=""),"",TBL_Pappersvaror[[#This Row],[UPPSKATTADE]]-TBL_Pappersvaror[[#This Row],[FAKTISKA]]) -> 
B74: Porto | C74: 50.00 kr | E74: =IF(OR(TBL_Pappersvaror[[#This Row],[UPPSKATTADE]]="",TBL_Pappersvaror[[#This Row],[FAKTISKA]]=""),"",TBL_Pappersvaror[[#This Row],[UPPSKATTADE]]-TBL_Pappersvaror[[#This Row],[FAKTISKA]]) -> 
B75: Diverse utgifter | C75: 100.00 kr | E75: =IF(OR(TBL_Pappersvaror[[#This Row],[UPPSKATTADE]]="",TBL_Pappersvaror[[#This Row],[FAKTISKA]]=""),"",TBL_Pappersvaror[[#This Row],[UPPSKATTADE]]-TBL_Pappersvaror[[#This Row],[FAKTISKA]]) -> 
B76: SUMMA KONTORSMATERIAL | C76: =SUBTOTAL(109,TBL_Pappersvaror[UPPSKATTADE]) -> 500.00 kr | D76: =SUBTOTAL(109,TBL_Pappersvaror[FAKTISKA]) -> 0.00 kr | E76: =TBL_Pappersvaror[[#Totals],[UPPSKATTADE]]-TBL_Pappersvaror[[#Totals],[FAKTISKA]] -> 500.00 kr
B79: BRÖLLOPSRINGAR | C79: UPPSKATTADE | D79: FAKTISKA | E79: AVVIKELSE
B80: Vigselringar | C80: 1,000.00 kr | E80: =IF(OR(TBL_Bröllopsringar[[#This Row],[UPPSKATTADE]]="",TBL_Bröllopsringar[[#This Row],[FAKTISKA]]=""),"",TBL_Bröllopsringar[[#This Row],[UPPSKATTADE]]-TBL_Bröllopsringar[[#This Row],[FAKTISKA]]) -> 
B81: Ringtillbehör | C81: 100.00 kr | E81: =IF(OR(TBL_Bröllopsringar[[#This Row],[UPPSKATTADE]]="",TBL_Bröllopsringar[[#This Row],[FAKTISKA]]=""),"",TBL_Bröllopsringar[[#This Row],[UPPSKATTADE]]-TBL_Bröllopsringar[[#This Row],[FAKTISKA]]) -> 
B82: SUMMA VIGSELRINGAR | C82: =SUBTOTAL(109,TBL_Bröllopsringar[UPPSKATTADE]) -> 1,100.00 kr | D82: =SUBTOTAL(109,TBL_Bröllopsringar[FAKTISKA]) -> 0.00 kr | E82: =TBL_Bröllopsringar[[#Totals],[UPPSKATTADE]]-TBL_Bröllopsringar[[#Totals],[FAKTISKA]] -> 1,100.00 kr
B85: TRANSPORT | C85: UPPSKATTADE | D85: FAKTISKT | E85: AVVIKELSE
B86: Hyrbil för bröllopspar | C86: 100.00 kr | E86: =IF(OR(TBL_Transport[[#This Row],[UPPSKATTADE]]="",TBL_Transport[[#This Row],[FAKTISKT]]=""),"",TBL_Transport[[#This Row],[UPPSKATTADE]]-TBL_Transport[[#This Row],[FAKTISKT]]) -> 
B87: Hyrbil för gäster | C87: 100.00 kr | E87: =IF(OR(TBL_Transport[[#This Row],[UPPSKATTADE]]="",TBL_Transport[[#This Row],[FAKTISKT]]=""),"",TBL_Transport[[#This Row],[UPPSKATTADE]]-TBL_Transport[[#This Row],[FAKTISKT]]) -> 
B88: Transport för långväga gäster | C88: 100.00 kr | E88: =IF(OR(TBL_Transport[[#This Row],[UPPSKATTADE]]="",TBL_Transport[[#This Row],[FAKTISKT]]=""),"",TBL_Transport[[#This Row],[UPPSKATTADE]]-TBL_Transport[[#This Row],[FAKTISKT]]) -> 
B89: Parkeringsvakt | C89: 50.00 kr | E89: =IF(OR(TBL_Transport[[#This Row],[UPPSKATTADE]]="",TBL_Transport[[#This Row],[FAKTISKT]]=""),"",TBL_Transport[[#This Row],[UPPSKATTADE]]-TBL_Transport[[#This Row],[FAKTISKT]]) -> 
B90: Diverse utgifter | C90: 100.00 kr | E90: =IF(OR(TBL_Transport[[#This Row],[UPPSKATTADE]]="",TBL_Transport[[#This Row],[FAKTISKT]]=""),"",TBL_Transport[[#This Row],[UPPSKATTADE]]-TBL_Transport[[#This Row],[FAKTISKT]]) -> 
B91: SUMMA TRANSPORT | C91: =SUBTOTAL(109,TBL_Transport[UPPSKATTADE]) -> 450.00 kr | D91: =SUBTOTAL(109,TBL_Transport[FAKTISKT]) -> 0.00 kr | E91: =TBL_Transport[[#Totals],[UPPSKATTADE]]-TBL_Transport[[#Totals],[FAKTISKT]] -> 450.00 kr
